Cogmind - Beta 11.1 @@@ ROGUE MODE // 2022.05.17 @ 23:50:48 Player: RX86 Result: Self-destructed Performance ------------- Evolutions (1) 500 Regions Visited (2) 400 Robots Destroyed (26) 130 Value Destroyed (508) 508 Prototype IDs (4) 80 Alien Tech Used (0) 0 Bonus (19) 19 TOTAL SCORE: 1637 Bonus ------- High Alert Combat Kills 19 Cogmind --------- Core Integrity 213/400 Matter 248/300 Energy 53/100 System Corruption 0% Temperature Cool (4) Movement Flying (37) Location -9/Materials Parts ------- > --- POWER (1) -------- (None) > --- PROPULSION (3) --- Flight Unit Flight Unit > --- UTILITY (3) ------ Small Storage Unit Weight Redist. System > --- WEAPON (2) ------- Mining Claw > --- INVENTORY (8) ---- Hover Unit Trap Extractor (0/4) Improved EM Shotgun Improved EM Shotgun Light EM Pulse Cannon Light EM Pulse Cannon Datajack Flail Peak State ------------ > --- POWER ------------ Light Ion Engine > --- PROPULSION ------- VTOL Module VTOL Module VTOL Module > --- UTILITY ---------- Small Storage Unit Weight Redist. System Trap Extractor > --- WEAPON ----------- Flail Flail > --- INVENTORY -------- Aluminum Leg VTOL Module Light EM Pulse Cannon Light EM Pulse Cannon Grenade Launcher Flail [Rating: 17] Favorites ----------- Power Ion Engine Engine Ion Engine Propulsion Aluminum Leg Leg Aluminum Leg Hover Unit Hover Unit Flight Unit VTOL Module Utility Small Storage Unit Device ECM Suite Storage Small Storage Unit Weapon Flail Energy Gun EM Pulse Gun Energy Cannon Light EM Pulse Cannon Ballistic Gun Light Assault Rifle Launcher Grenade Launcher Impact Weapon Flail Slashing Weapon Mining Claw Build | -11 -10 -9 ------- Run | Scr Mat Mat Slots Evolved 2 | . . 2 Power . | . . . Propulsion 1 | . . 1 Utility 1 | . . 1 Weapon . | . . . Parts Attached 42 | 6 17 19 Power 4 | 1 2 1 Engine 4 | 1 2 1 Core . | . . . Reactor . | . . . Propulsion 16 | 2 6 8 Treads . | . . . Leg 6 | 2 4 . Wheel . | . . . Hover 1 | . . 1 Flight 9 | . 2 7 Utility 8 | 1 4 3 Device 4 | . 2 2 Storage 4 | 1 2 1 Processor . | . . . Hackware . | . . . Protection . | . . . Artifact . | . . . Weapon 14 | 2 5 7 Energy Gun 2 | 1 1 . Energy Cannon 4 | . 2 2 Ballistic Gun 1 | 1 . . Ballistic Cannon . | . . . Launcher 2 | . . 2 Special Weapon . | . . . Impact Weapon 4 | . 2 2 Slashing Weapon 1 | . . 1 Piercing Weapon . | . . . Special Melee Weapon . | . . . Unidentified Prototypes 1 | . . 1 Parts Lost 10 | . 1 9 Power 1 | . . 1 Propulsion 7 | . . 7 Utility . | . . . Weapon 2 | . 1 1 Highest Loss Streak 5 | . 1 5 To Critical Strikes . | . . . Average Slot Usage (%) 94 | . 96 86 Engine 13 | . 14 9 Leg 19 | . 23 . Flight 9 | . 4 31 Device 11 | . 10 15 Storage 13 | . 14 11 Energy Gun 4 | . 5 . Energy Cannon 5 | . 5 4 Ballistic Gun 4 | . 5 . Impact Weapon 11 | . 11 9 Naked Turns . | . . . Heaviest Build 25 | 13 25 15 Greatest Support 26 | 20 26 18 Greatest Overweight (x) 1 | . 1 1 Average Overweight (x) . | . . . Largest Inventory Capacity 10 | 8 10 8 Average Capacity 8 | 7 8 8 Most Carried 8 | 4 8 8 Average Carried 5 | 1 5 7 Final Capacity 8 | 8 8 8 Final Carried 8 | 2 8 8 Class Distribution -------------------- 86% | Mutant 13% | Sprinter Dominant Class ---------------- Mutant | -10/Materials Mutant | -9/Materials Resources | -11 -10 -9 ----------- Run | Scr Mat Mat Matter Collected 571 | 200 238 133 Remotely . | . . . Salvage Created 620 | . 458 162 Parts 32 | . 22 10 Haulers Intercepted 2 | . 1 1 Recyclers Shooed . | . . . Parts Field Recycled . | . . . Retrieved Matter . | . . . Parts Self-Destructed . | . . . Prevented . | . . . Kills | -11 -10 -9 ------- Run | Scr Mat Mat Combat Hostiles Destroyed 18 | . 8 10 Melee 5 | . 3 2 Guns 3 | . 3 . Cannons 2 | . 1 1 AOE 6 | . . 6 Classes Destroyed 7 | . 6 1 Worker 1 | . 1 . Hauler 2 | . 1 1 Recycler 1 | . 1 . Watcher 4 | . 3 1 Swarmer 9 | . 2 7 Grunt 8 | . 6 2 Sentry 1 | . . 1 Best Kill Streak 6 | . 4 6 Combat Bots Only 4 | . 4 4 Max Kills in Single Turn 4 | . 1 4 Gunslinging . | . . . Exploded 4 | . . 4 Melee 1 | . 1 1 Uniques/NPCs Destroyed . | . . . Combat | -11 -10 -9 -------- Run | Scr Mat Mat Damage Taken 1084 | . 479 605 Core 254 | . 67 187 Absorbed by Shields . | . . . Core Remaining (%) 86 | 100 73 . Volleys Fired 26 | . 18 8 Largest 2 | . 2 1 Hottest 112 | . 112 68 Shots Fired 44 | . 36 8 Gun 26 | . 26 . Cannon 14 | . 10 4 Launcher 4 | . . 4 Special . | . . . Kinetic 13 | . 13 . Thermal 9 | . 7 2 Explosive 4 | . . 4 Electromagnetic 18 | . 16 2 Robot Hit Streak 6 | . 6 1 Robot Miss Streak 4 | . 2 4 Penetration Max . | . . . Secondary Targets 1 | . 1 . Max Gunslinging Chain 1 | . 1 . Shots Hit Robots 52 | . 41 11 Core Hits 26 | . 16 10 Critical Kills . | . . . Critical Parts Destroyed 2 | . 2 . Critical Strikes 2 | . 2 . Smash 2 | . 2 . Melee Attacks 50 | . 34 16 Impact 44 | . 34 10 Slashing 6 | . . 6 Piercing . | . . . Sneak Attacks 3 | . 2 1 Combat Hostiles . | . . . Follow-up Attacks 4 | . 4 . Damage Inflicted 1935 | . 1117 818 Guns 208 | . 208 . Cannons 221 | . 182 39 Explosions 387 | . . 387 Melee 1119 | . 727 392 Ramming . | . . . Kinetic 53 | . 53 . Thermal 96 | . 76 20 Explosive 387 | . . 387 Electromagnetic 280 | . 261 19 Impact 1038 | . 727 311 Slashing 81 | . . 81 Piercing . | . . . Highest Corruption . | . . . Average Corruption . | . . . Corruption Purged . | . . . Corruption Blocked . | . . . Overload Shots . | . . . Overflow Damage 321 | . 159 162 Projectiles 10 | . . 10 Explosions . | . . . Melee 311 | . 159 152 Knockbacks 2 | . . 2 Impact 2 | . . 2 Kinetic . | . . . Secondary . | . . . Self-Inflicted Damage 27 | . . 27 Shots 1 | . . 1 Rammed . | . . . Targets Rammed . | . . . Kicked . | . . . Crushed . | . . . Highest Temperature 136 | . 136 64 Average Temperature 47 | . 54 18 Received Heat Transfer 453 | . 228 225 Siege Activations . | . . . Robots Corrupted . | . . . Combat Hostiles . | . . . Parts Fried 8 | . 6 2 Impact Corruptions 14 | . 7 7 Robots Melted . | . . . Combat Hostiles . | . . . Parts Melted . | . . . Heat Transferred 259 | . 222 37 Parts Sabotaged . | . . . Parts Stolen . | . . . Parts Stripped . | . . . Power Chain Reactions . | . . . Missiles Intercepted . | . . . Alert | -11 -10 -9 ------- Run | Scr Mat Mat Peak Influence 515 | . 179 515 Initial 23 | . . 23 Average 107 | . 58 333 Maximum Alert Level 2 | . . 2 Low Security (%) 85 | 100 100 24 Level 1 5 | . . 29 Level 2 8 | . . 46 Level 3 . | . . . Level 4 . | . . . Level 5 . | . . . High Security . | . . . Max Security . | . . . Squads Dispatched 4 | . 2 2 Investigation 2 | . 1 1 Extermination . | . . . Reinforcement 2 | . 1 1 Assault . | . . . Garrison . | . . . Intercept . | . . . Searches Triggered . | . . . Construction Impeded . | . . . Haulers Reinforced . | . . . Active Scanning Responses . | . . . Cargo Convoy Interrupts . | . . . Stealth | -11 -10 -9 --------- Run | Scr Mat Mat Distress Signals 1 | . . 1 Communications Jammed . | . . . Distress Signals . | . . . Times Spotted 37 | . 16 21 Peak Tracking Total 9 | . 3 9 Tactical Retreats 4 | . 1 3 Traps | -11 -10 -9 ------- Run | Scr Mat Mat Traps Triggered 1 | . 1 . Indirectly . | . . . Trap Hack Attempts . | . . . Triggered . | . . . Disarmed . | . . . Reprogrammed 4 | . . 4 Reused . | . . . Traps Extracted . | . . . Installed . | . . . Triggered . | . . . Machines | -11 -10 -9 ---------- Run | Scr Mat Mat Machines Disabled . | . . . Max in Single Turn . | . . . Machines Sabotaged . | . . . Garrisons Compromised . | . . . Overloaded Fab Kills . | . . . Hacking | -11 -10 -9 --------- Run | Scr Mat Mat Machines Accessed 14 | . 8 6 Terminals 10 | . 6 4 Fabricators . | . . . Repair Stations 2 | . 1 1 Recycling Units 1 | . 1 . Scanalyzers 1 | . . 1 Garrison Access . | . . . Total Hacks 40 | . 17 23 Successful 30 | . 11 19 Failed 10 | . 6 4 Catastrophic 1 | . 1 . Database Lockouts . | . . . Manual 32 | . 17 15 Terminals 35 | . 15 20 Fabricators . | . . . Repair Stations 2 | . 1 1 Recycling Units 1 | . 1 . Scanalyzers 2 | . . 2 Garrison Access . | . . . Terminal Hacks 12 | . 4 8 Prototype ID Bank 1 | . . 1 Branch Access Points 1 | . . 1 Terminal Index 2 | . 1 1 Alert Level 1 | . 1 . Unreport Threat 2 | . 2 . Reprogram Traps 1 | . . 1 Maintenance Status 1 | . . 1 Patrol Status 1 | . . 1 Hauler Manifests 1 | . . 1 Zone Layout 1 | . . 1 Fabricator Hacks . | . . . Repair Station Hacks . | . . . Recycling Unit Hacks . | . . . Scanalyzer . | . . . Garrison Access Hacks . | . . . Unauthorized Hacks 18 | . 7 11 Terminals 14 | . 5 9 Track 4 | . 1 3 Assimilate 2 | . 1 1 Botnet 7 | . 3 4 Operators 1 | . . 1 Fabricators . | . . . Repair Stations 2 | . 1 1 Mechanics 2 | . 1 1 Recycling Units 1 | . 1 . Recyclers 1 | . 1 . Scanalyzers 1 | . . 1 Extract 1 | . . 1 Garrison Access . | . . . Data Cores Recovered . | . . . Used . | . . . Hacking Detections 9 | . 7 2 Full Trace Events . | . . . Feedback Events . | . . . Feedback Blocked . | . . . Robot Schematics Acquired . | . . . Robots Built . | . . . Authchips . | . . . Time . | . . . Total Robot Build Rating . | . . . Part Schematics Acquired 8 | . . 8 Parts Built . | . . . Authchips . | . . . Time . | . . . Total Part Build Rating . | . . . Parts Repaired . | . . . Time . | . . . Parts Recycled . | . . . Recycled Matter . | . . . Retrieved Matter . | . . . Retrieved Components . | . . . Parts Scanalyzed . | . . . Part Schematics Acquired . | . . . Parts Damaged . | . . . Bothacking | -11 -10 -9 ------------ Run | Scr Mat Mat Used RIF Installer . | . . . Robots Hacked . | . . . Non-combat . | . . . Combat . | . . . Robot Hacks Applied . | . . . Relay Couplers Released . | . . . Fabnet Peak Effective % . | . . . Robots Rewired . | . . . Allies Hacked . | . . . Hacks Repelled . | . . . Allies | -11 -10 -9 -------- Run | Scr Mat Mat Total Allies . | . . . Largest Group . | . . . Highest-Rated Group . | . . . Highest-Rated Ally . | . . . Total Orders . | . . . Ally Attacks . | . . . Total Damage . | . . . Kills . | . . . Allies Corrupted . | . . . Allies Melted . | . . . Intel | -11 -10 -9 ------- Run | Scr Mat Mat Robot Analysis Total . | . . . Derelict Logs Recovered . | . . . Drone Launches . | . . . Drone Recoveries . | . . . Exploration | -11 -10 -9 ------------- Run | Scr Mat Mat Turns Passed 1171 | 57 895 219 Spaces Moved 1202 | 40 833 329 Core 3 | 3 . . Treads . | . . . Legs 527 | 37 490 . Wheels . | . . . Hover 4 | . . 4 Flight 668 | . 343 325 Fastest Speed 29 | 50 32 29 Average Speed 71 | 114 84 34 Slowest Speed 190 | 120 190 120 Overloaded Moves . | . . . Propulsion Burnouts . | . . . Robots Hopped 3 | . 2 1 Cave-ins Triggered . | . . . Exploration Rate (%) 43 | 5 97 27 Regions Visited 2 Branch Regions . Pre-discovered Areas . | . . . Known Exits Taken . | . . . Unknown Exits Taken 2 | 1 1 . Scrap Searched . | . . . Spaces Dug 5 | . 5 . Terrain Destroyed 37 | . 5 32 Melee 5 | . 5 . Projectile . | . . . AOE 32 | . . 32 Terrain Rammed . | . . . Walls Destroyed . | . . . Machines Disabled . | . . . Actions | -11 -10 -9 --------- Run | Scr Mat Mat Total 1391 | 49 944 398 Wait 27 | . 17 10 Move 1194 | 39 828 327 Hop 3 | . 2 1 Pick Up 29 | 4 17 8 Fast Attach 9 | 4 1 4 Attach 11 | 2 1 8 Detach 3 | . . 3 Swap 22 | . 15 7 Drop 22 | . 16 6 Fire 26 | . 18 8 Melee 45 | . 29 16 Ram . | . . . Kick . | . . . Crush . | . . . Escape Stasis . | . . . Rewire . | . . . Trap . | . . . Miscellaneous . | . . . Route ------- -11/Scrapyard -10/Materials (discovered 5 exits: *Mat x3 / [*Min x2]) -9/Materials (discovered 1 exit: Min) History --------- Turn | Location | Event 4 | -11/Scrapyard | Discovered new exit (range 16) 58 | -11/Scrapyard | Entered Materials 217 | -10/Materials | Discovered new exit (range 6) 300 | -10/Materials | Build established: Mutant 379 | -10/Materials | Discovered new exit (range 14) 478 | -10/Materials | Discovered new exit (range 15) 816 | -10/Materials | Discovered new exit (range 10) 861 | -10/Materials | Discovered new exit (range 8) 953 | -10/Materials | Entered another Materials area 953 | -9/Materials | Evolved 2 slots: Propulsion x1, Utility x1 1004 | -9/Materials | Identified exit to Mines 1079 | -9/Materials | Lost 4 parts (3n1w) 1172 | -9/Materials | Self-destructed Last Messages --------------- M012. 01133_ Connecting with Terminal... >>Trojan(Botnet) Trojan loaded successfully. Testing... Terminal linked with 3 systems. Awaiting botnet instructions. >>Trojan(Track) Trojan loaded successfully. Testing... Tracking enabled and active. 01134_ Dropped Adv. Beam Cannon. 01135_ Lgt. Ion Engine destroyed. 01137_ Acquired Flight Unit. 01138_ Flight Unit destroyed. 01139_ Acquired Flight Unit. 01145_ Acquired Hcp. Matter Pod. 01146_ Dropped Hcp. Matter Pod. 01160_ Flight Unit destroyed. 01168_ K-01 Serf collects debris. Map ----- +----------------------------------------------------+ | ?????????????????????????????###############?????? | | ?????????????????????????????# ####### | | ?????????????????????????????# # | | ?????????????????????????????# # == | | ?????????????????????????????# # ==! | | ?????????????????????????????# # ==! | | ?????????????????????????????# # | | ?????????????????????????????#######+####### | | ?????????????????????????????????# ############ | | ?????????????????????????????????# | | ?????????????????????????????????# ! | | ?????????????????????????????????# #####+#### | | ?????????????????????????????????######?# ! # | | ??????????????????????????????########### =! /# | | ????????????????????#####?????# """"" # =!/*/ | | ????????############# #?????# """"" # = # | | ??????? #?????# """"" # # | | ??????? s #?????# # # | | ??????? s #?????# # # | | ????????#############s #?????# ######## | | ?????????############u #?????# #?????## | | ?????????# ## ##????# #?????# | | ?????????# # ##########+########### | | ?????????# # | | ?????????# + T | | ?????????# " "" # @ " "" | | ?????????# "R"" # ############+##### "R"" | | ?????????# """ ## ####???????# ## """ | | ?????????# ## #??????????# """## | | ?????????############ #??????????# """## | | ????????????????????# #??????????# """## ##+# | | ????????????????????# #??????????# """## # | | ????????????????????# #??????????# + + | | ????????????????????# #??????????# """#### # | | ????????????????????# #??????????# """#??# # | | ????????????????????# #??????????# """#??# # | | ????????????????????# #??????????# """#??# # | | ????????????????????? ???????????# #??# #! | | ????????????????????? ???????????#########??# #### | | ????????????????????? ????????????????????###/## | | ????????????????????? ????????????????????# + | | ????????????????????? ????????????????????# # ! | | ????????????????????? ????????????????????# # ! | | ????????????????????? ????????????????????# ! # | | ??????????????????????????????????????????# # | | ??????????????????????????????????????????# # | | ??????????????????????????????????????????###### | | ???????????????????????????????????????????????### | | ?????????????????????????????????????????????????? | | ???????????????????????????????????????????o?????? | +----------------------------------------------------+ Best States ------------- Heat Dissipation 28 Energy Generation 10 Energy Capacity 250 Matter Stores 300 Matter Capacity 300 Sight Range 16 Terrain Scan Density 10 ECM Strength 1 Additional Mass Support 6 Evasion (%) 64 Trap Extractor Capacity 4 Item Schematics ----------------- Hvy. Ion Engine | -9/Materials | Extracted Ion Engine | -9/Materials | Extracted Lgt. Cannon | -9/Materials | Extracted Imp. Aluminum Leg | -9/Materials | Extracted Hvy. Assault Rifle | -9/Materials | Extracted Field Recycling Unit | -9/Materials | Extracted Beam Rifle | -9/Materials | Extracted EM Pulse Gun | -9/Materials | Extracted Robot Schematics ------------------ None Fabricated ------------ Nothing Alien Tech Used ----------------- None Achievements -------------- None Challenges ------------ None Game ------ Seed RecoilAnalysisMallet Manual? 0 Play Time 00:36:46 Cumulative 42.8 hours Start 2022.05.17 @ 23:16:49 End 2022.05.17 @ 23:50:48 Sessions 1 Manual Loads 0 Difficulty Rogue Special Mode None Game No. 31 Rogue 29 Adventurer 0 Explorer 2 Win Type - Total 0 Types 0/0/0/0/0/0/0/0/0 Lore% 24 Gallery% 28 Achievement% 23 Wizard Run 0 Options --------- ASCII 0 Keyboard 0 Movement Numpad Keybinds 0 Fullscreen 1 Font 18/SmallcapsGlow Map View 76x50 Tactical HUD 1 Map Filters NONE Filters NONE Steam 1 RUN: f268dde8-d675-4efc-afeb-bda2fd1632ee